bitfinex/quotes_SOLUSD_20230103
["timestamp","ask_amount","ask_price","bid_price","bid_amount"]
[1672730994850,0.96341123,11.838,11.83,83.49]
[1672730996514,24.9428,11.839,11.83,83.49]
[1672730999685,2.1683465,11.838,11.83,83.49]
[1672730999881,24.9428,11.839,11.83,83.49]
[1672731002739,24.9428,11.839,11.83,134.38587517]
[1672731003883,20.0,11.864,11.83,134.38587517]
[1672731003884,30.0,11.848,11.83,147.28587517]
[1672731004080,53.3382,11.847,11.831,47.351]
[1672731004294,53.3382,11.847,11.832,110.831]
[1672731004504,53.3382,11.847,11.833,20.0]
[1672731004733,53.3382,11.847,11.834,86.9999]
[1672731004935,53.3382,11.847,11.835,20.0]
[1672731005147,53.3382,11.847,11.836,63.46]
[1672731005357,53.3382,11.847,11.837,20.0]
[1672731005554,23.3382,11.847,11.838,63.45]
[1672731005761,23.3382,11.847,11.838,121.2350085]
[1672731005976,23.3382,11.847,11.839,20.0]
[1672731006206,23.3382,11.847,11.84,63.44]
[1672731006612,23.3382,11.847,11.841,20.0]
[1672731007164,23.3382,11.847,11.84,20.0]
[1672731007347,23.3382,11.847,11.841,63.43]
[1672731008522,23.3382,11.847,11.841,121.2150085]
[1672731017249,23.3382,11.847,11.841,163.29297364]
[1672731023448,23.3382,11.847,11.841,198.56681793]
[1672731024501,210.98732,11.85,11.847,23.42409333]
[1672731024727,210.98732,11.85,11.848,92.82497669]
[1672731024937,210.98732,11.85,11.848,215.86215799]
[1672731025146,210.98732,11.85,11.849,123.0371813]
[1672731025457,63.28,11.869,11.852,52.74683]
[1672731025660,12.91,11.87,11.854,19.78817022]
[1672731025863,63.3,11.866,11.853,19.78817022]
[1672731026074,111.4232,11.865,11.853,79.42807382]
[1672731027141,30.0,11.864,11.852,52.74683]
[1672731027335,141.4232,11.864,11.852,52.74683]
[1672731028509,204.7332,11.864,11.852,52.74683]
[1672731029757,228.9,11.864,11.852,52.74683]
[1672731030389,24.1668,11.863,11.852,52.74683]
[1672731030599,12.95,11.86,11.852,52.74683]
[1672731034830,12.91,11.86,11.852,52.74683]
[1672731039127,30.0,11.859,11.83,64.73]
[1672731039340,63.34,11.858,11.847,0.00589333]
[1672731039528,222.9771,11.858,11.847,0.00589333]
[1672731039744,30.0,11.856,11.847,0.00589333]
[1672731039953,93.35,11.856,11.847,0.00589333]
[1672731040386,30.0,11.854,11.847,0.00589333]
[1672731040597,30.0,11.852,11.847,0.00589333]
[1672731040923,112.5118,11.851,11.847,0.00589333]
[1672731041450,136.4549,11.851,11.847,0.00589333]
[1672731041639,30.0,11.85,11.847,0.00589333]
[1672731042165,30.0,11.85,11.84,22.9162]
[1672731042372,42.93,11.85,11.84,22.9162]
[1672731042585,42.93,11.85,11.841,20.0]
[1672731044052,42.96,11.85,11.841,20.0]
[1672731046579,23.9431,11.851,11.842,63.43]
[1672731073645,53.9431,11.851,11.841,106.0146]
[1672731073954,53.9431,11.851,11.841,42.5846]
[1672731074166,53.9431,11.851,11.841,106.0146]
[1672731075524,12.96,11.85,11.827,119.76988126]
[1672731075849,12.96,11.85,11.828,131.775]
[1672731075850,30.0,11.848,11.828,131.775]
[1672731076043,198.4436413,11.847,11.828,131.775]
[1672731076259,30.0,11.846,11.828,131.775]
[1672731076459,30.0,11.844,11.828,131.775]
[1672731076672,182.5154413,11.843,11.828,131.775]
[1672731076880,182.5154413,11.843,11.828,111.775]
[1672731077305,47.3923,11.842,11.828,111.775]
[1672731077618,19.1948413,11.841,11.828,111.775]
[1672731077855,182.4359413,11.841,11.828,111.775]
[1672731078164,182.4359413,11.841,11.829,20.0]
[1672731078381,136.2997,11.84,11.829,20.0]
[1672731078681,19.1948413,11.839,11.83,42.98]
[1672731078896,19.1948413,11.848,11.831,20.0]
[1672731079111,19.1948413,11.848,11.831,58.82319765]
[1672731079297,54.1356,11.849,11.832,84.73296466]
[1672731079634,54.1356,11.849,11.833,58.82319765]
[1672731080683,166.2997,11.849,11.833,58.82319765]
[1672731080913,166.2997,11.849,11.833,20.0]
[1672731081421,166.2997,11.849,11.834,45.6501]
[1672731081632,166.2997,11.849,11.835,20.0]
[1672731081820,166.2997,11.849,11.836,22.6989]
[1672731082027,166.2997,11.849,11.837,20.0]
[1672731082344,166.2997,11.849,11.837,42.6989]
[1672731088475,136.2997,11.849,11.837,42.6989]
[1672731093382,24.0375,11.848,11.837,42.6989]
[1672731094955,138.934,11.848,11.837,42.6989]
[1672731126524,63.37,11.853,11.84,12.86]
[1672731126738,162.0343,11.857,11.841,42.6658]
[1672731126956,162.0343,11.857,11.841,298.92390214]
[1672731127170,162.0343,11.857,11.842,54.51430931]
[1672731127372,162.0343,11.857,11.843,20.0]
[1672731127589,137.4044,11.856,11.843,67.6096]
[1672731128330,137.4044,11.856,11.844,22.6658]
[1672731128541,137.4044,11.856,11.845,20.0]
[1672731129280,137.4044,11.856,11.845,42.6658]
[1672731130010,137.4044,11.856,11.845,101.81694931]
[1672731132095,137.4044,11.856,11.845,160.57864214]
[1672731162377,30.0,11.855,11.841,118.0383]
[1672731162597,63.36,11.854,11.842,20.0]
[1672731162917,142.5507,11.855,11.835,46.3378]
[1672731163120,164.1585,11.853,11.836,22.9928]
[1672731163441,164.1585,11.852,11.836,22.9928]
[1672731163653,164.1585,11.852,11.836,68.86922145]
[1672731163851,164.1585,11.851,11.836,68.86922145]
[1672731164064,63.34,11.858,11.84,12.96]
[1672731164385,164.1585,11.857,11.841,104.71356363]
[1672731164583,164.1585,11.856,11.842,46.3378]
[1672731164794,166.1795,11.855,11.843,42.9928]
[1672731165023,24.7765,11.854,11.843,42.9928]
[1672731165548,141.7653,11.854,11.843,42.9928]
[1672731169115,141.7653,11.854,11.843,50.75444063]
[1672731172790,141.7653,11.854,11.844,30.0]
[1672731172981,141.7653,11.854,11.845,20.0]
[1672731173197,141.7653,11.854,11.845,27.76164063]
[1672731173412,141.7653,11.854,11.846,7.76164063]
[1672731173625,141.7653,11.854,11.847,20.0]
[1672731174051,141.7653,11.854,11.848,7.76164063]
[1672731174356,141.7653,11.854,11.849,20.0]
[1672731174810,141.7653,11.854,11.85,7.76164063]
[1672731175216,24.4142,11.855,11.851,20.0]
[1672731175427,138.4118,11.859,11.851,20.0]
[1672731175633,115.0554,11.859,11.852,7.76164063]
[1672731178387,24.1099,11.861,11.852,7.76164063]
[1672731178577,24.1099,11.861,11.853,20.0]
[1672731178793,24.1099,11.861,11.853,113.8009318]
[1672731179013,24.1099,11.861,11.854,101.56257243]
[1672731179537,24.1099,11.861,11.855,121.56257243]
[1672731179955,24.1099,11.861,11.856,101.56257243]
[1672731180166,24.1099,11.861,11.857,20.0]
[1672731180495,24.1099,11.861,11.857,75.68615098]
[1672731180808,24.1099,11.861,11.858,55.68615098]
[1672731181012,24.6004,11.862,11.859,20.0]
[1672731181226,111.7298,11.864,11.859,27.76164063]
[1672731181549,63.27,11.872,11.86,7.76164063]
[1672731181750,163.3185,11.869,11.86,7.76164063]
[1672731181967,163.3185,11.869,11.861,20.0]
[1672731182689,163.3185,11.869,11.862,7.76164063]
[1672731184049,163.3185,11.869,11.863,20.0]
[1672731184468,163.3185,11.869,11.864,8.47282519]
[1672731185204,113.9299,11.869,11.864,8.47282519]
[1672731188067,113.9299,11.869,11.864,62.14057997]
[1672731188382,113.9299,11.869,11.864,53.66775478]
[1672731188569,113.9299,11.869,11.865,8.47282519]
[1672731189642,113.9299,11.869,11.865,7.47282519]
[1672731189837,113.9299,11.869,11.866,8.47282519]
[1672731190252,113.9299,11.869,11.863,20.0]
[1672731190579,113.9299,11.869,11.864,8.44474778]
[1672731191004,113.9299,11.869,11.865,53.66775478]
[1672731191313,113.9299,11.869,11.866,8.44474778]
[1672731191527,92.69025222,11.867,11.866,8.44474778]
[1672731191853,92.69025222,11.867,11.866,82.11250256]
[1672731195519,92.69025222,11.867,11.857,143.86337406]
[1672731195520,82.10999744,11.866,11.857,143.86337406]
[1672731195741,82.10999744,11.866,11.856,170.99000926]
[1672731195928,192.44799744,11.866,11.858,8.20760117]
[1672731196137,110.338,11.866,11.858,8.20760117]
[1672731196348,110.338,11.866,11.859,49.01654937]
[1672731196778,110.338,11.866,11.86,7.97047455]
[1672731197206,110.338,11.866,11.861,20.0]
[1672731197726,110.338,11.866,11.861,27.97047455]
[1672731197937,110.338,11.866,11.861,7.97047455]
[1672731199304,110.338,11.866,11.862,20.0]
[1672731199722,110.338,11.866,11.862,27.97047455]
[1672731199933,92.69025222,11.867,11.862,27.97047455]
[1672731208664,92.69025222,11.867,11.846,142.06506845]
[1672731208863,30.0,11.865,11.846,142.06506845]
[1672731209197,30.0,11.863,11.847,7.97047455]
[1672731209386,63.32,11.862,11.847,7.97047455]
[1672731209599,166.6421,11.861,11.847,7.97047455]
[1672731210139,166.6421,11.861,11.847,92.77695413]
[1672731210351,166.005,11.86,11.847,92.77695413]
[1672731210548,166.005,11.86,11.848,7.97047455]
[1672731210876,166.005,11.86,11.848,57.64799258]
[1672731211072,117.4672,11.859,11.848,57.64799258]
[1672731211287,117.4672,11.859,11.849,7.74675418]
[1672731211705,117.4672,11.859,11.85,20.0]
[1672731212121,117.4672,11.859,11.851,7.74675418]
[1672731212544,117.4672,11.859,11.852,20.0]
[1672731212964,117.4672,11.859,11.853,7.74675418]
[1672731216956,109.72044582,11.859,11.854,30.0]
[1672731217165,109.72044582,11.859,11.855,20.0]
[1672731217391,109.72044582,11.859,11.855,69.67751803]
[1672731217605,109.72044582,11.859,11.855,27.52935538]
[1672731217805,109.72044582,11.859,11.856,57.20687341]
[1672731218020,48.0683,11.866,11.857,20.0]
[1672731218231,48.0683,11.866,11.857,27.52935538]
[1672731218570,48.0683,11.866,11.858,7.52935538]
[1672731219061,48.0683,11.866,11.859,20.0]
[1672731219266,24.3492,11.87,11.859,20.0]
[1672731219477,24.3492,11.87,11.86,7.52935538]
[1672731219687,24.3492,11.87,11.861,20.0]
[1672731220106,24.3492,11.87,11.862,7.52935538]
[1672731220655,24.3492,11.87,11.863,20.0]
[1672731221060,24.3492,11.87,11.864,7.52935538]
[1672731221371,48.0683,11.871,11.864,7.52935538]
[1672731222320,160.7539,11.871,11.864,7.52935538]
[1672731229160,0.27245951,11.867,11.864,7.52935538]
[1672731246497,23.7295,11.876,11.866,30.0]
[1672731246700,23.7295,11.876,11.867,20.0]
[1672731246916,23.7295,11.876,11.869,0.27245951]
[1672731247134,23.7295,11.876,11.867,27.52935538]
[1672731247454,138.6729,11.877,11.868,7.52170413]
[1672731247663,138.6729,11.877,11.869,20.0]
[1672731248075,138.6729,11.877,11.87,7.52170413]
[1672731248620,138.6729,11.877,11.871,20.0]
[1672731249043,138.6729,11.877,11.872,7.52170413]
[1672731249249,114.3748,11.877,11.872,7.52170413]
[1672731249565,114.3748,11.877,11.873,20.0]
[1672731250392,36.8447,11.88,11.873,20.0]
[1672731250721,36.8447,11.88,11.868,24.5601]
[1672731250722,36.8447,11.88,11.869,27.52170413]
[1672731250945,23.9347,11.879,11.869,27.52170413]
[1672731251123,23.9347,11.879,11.87,7.52170413]
[1672731251332,23.9347,11.879,11.871,20.0]
[1672731251770,23.9347,11.879,11.872,7.52170413]
[1672731252191,23.9347,11.879,11.873,20.0]
[1672731252600,23.9347,11.879,11.873,27.52170413]
[1672731258498,23.9347,11.879,11.873,20.0]
[1672731258706,23.9347,11.879,11.873,7.52170413]
[1672731262373,23.9347,11.879,11.87,20.0]
[1672731263128,23.9347,11.879,11.871,7.52170413]
[1672731263331,23.9347,11.879,11.872,20.0]
[1672731263751,23.9347,11.879,11.873,7.52170413]
[1672731268389,23.9347,11.879,11.872,20.0]
[1672731268618,23.9347,11.879,11.87,20.0]
[1672731269220,23.9347,11.879,11.871,7.52170413]
[1672731269433,23.9347,11.879,11.872,20.0]
[1672731269956,23.9347,11.879,11.873,7.52170413]
[1672731272513,23.9347,11.879,11.872,20.0]
[1672731272684,23.9347,11.879,11.87,20.0]
[1672731272894,23.9347,11.879,11.871,7.52170413]
[1672731273225,23.9347,11.879,11.872,20.0]
[1672731273957,23.9347,11.879,11.87,20.0]
[1672731276896,23.9347,11.879,11.852,497.93762386]
[1672731277090,208.5867,11.88,11.858,46.5834]
[1672731277091,12.89,11.87,11.858,46.5834]
[1672731277301,22.6176,11.869,11.863,7.52170413]
[1672731277526,135.0549,11.876,11.863,7.52170413]
[1672731278359,135.0549,11.876,11.864,22.6991]
[1672731278582,135.0549,11.876,11.865,20.0]
[1672731278793,135.0549,11.876,11.865,50.22080413]
[1672731279216,135.0549,11.876,11.866,7.52170413]
[1672731279413,135.0549,11.876,11.867,20.0]
[1672731279953,85.49955213,11.895,11.867,20.0]
[1672731279954,12.83,11.89,11.876,7.52170413]
[1672731280149,30.0,11.887,11.868,59.81348928]
[1672731280364,49.1466,11.886,11.869,22.6436]
[1672731280574,63.2,11.885,11.869,22.6436]
[1672731281107,49.1466,11.884,11.87,20.0]
[1672731281520,112.3566,11.883,11.87,20.0]
[1672731281728,24.3183,11.882,11.87,20.0]
[1672731282349,24.3183,11.881,11.87,20.0]
[1672731283090,12.79,11.88,11.87,20.0]
[1672731283761,36.6651,11.88,11.87,20.0]
[1672731289949,23.8751,11.88,11.87,20.0]
[1672731294161,23.8751,11.88,11.87,27.52170413]
[1672731296145,63.21,11.884,11.87,27.52170413]
[1672731296364,111.9081,11.888,11.872,30.0]
[1672731296562,230.1369,11.888,11.873,42.7552]
[1672731296774,230.1369,11.888,11.873,50.27690413]
[1672731297104,30.0,11.887,11.873,42.7552]
[1672731297313,12.91,11.88,11.874,46.2195]
[1672731297715,12.91,11.88,11.873,20.0]
[1672731297928,12.91,11.88,11.87,20.0]
[1672731298775,37.7978,11.88,11.87,20.0]
[1672731299003,37.8078,11.88,11.87,20.0]
[1672731302667,37.8078,11.88,11.87,27.52170413]
[1672731302887,37.8078,11.88,11.87,20.0]
[1672731303608,37.8078,11.88,11.87,27.52170413]
[1672731303817,37.8078,11.88,11.87,20.0]
[1672731304358,37.8078,11.88,11.87,27.52170413]
[1672731307088,22.7393,11.89,11.872,30.0]
[1672731307291,115.2818,11.888,11.873,20.0]
[1672731307609,115.2818,11.888,11.874,30.0]
[1672731307812,138.1676,11.887,11.875,20.0]
[1672731308012,138.1676,11.887,11.875,144.36660121]
[1672731308225,138.1676,11.887,11.876,75.91740121]
[1672731308440,138.1676,11.887,11.876,150.32748394]
[1672731308649,138.1676,11.887,11.877,27.52170413]
[1672731311293,138.1676,11.887,11.877,20.0]
[1672731311508,138.1676,11.887,11.86,42.86]
[1672731311700,204.6849,11.886,11.868,67.8922]
[1672731311911,30.0,11.885,11.871,7.52170413]
[1672731312134,63.21,11.884,11.871,7.52170413]
[1672731312341,111.3898,11.883,11.871,7.52170413]
[1672731312552,63.22,11.882,11.871,7.52170413]
[1672731312765,174.6098,11.882,11.871,7.52170413]
[1672731314974,111.3898,11.882,11.871,7.52170413]
[1672731315602,135.8155,11.882,11.871,7.52170413]
[1672731316744,135.8155,11.882,11.872,20.0]
[1672731317288,35.7493,11.89,11.873,37.52170413]
[1672731317289,85.9093,11.89,11.873,37.52170413]
[1672731317487,161.0635,11.888,11.873,154.28390413]
[1672731317694,137.8388,11.887,11.875,30.0]
[1672731317908,137.8388,11.887,11.876,20.0]
[1672731318125,137.8388,11.887,11.876,91.41073454]
[1672731318320,137.8388,11.887,11.877,71.41073454]
[1672731318533,137.8388,11.887,11.878,20.0]
[1672731318755,137.8388,11.887,11.878,27.52170413]
[1672731318941,137.8388,11.887,11.879,7.52170413]
[1672731319160,137.8388,11.887,11.88,20.0]
[1672731319594,137.8388,11.887,11.88,27.52170413]
[1672731320001,113.4131,11.887,11.88,27.52170413]
[1672731333244,25.4007012,11.899,11.887,120.93480413]
[1672731333462,159.8087,11.897,11.889,38.91356416]
[1672731333676,25.4007012,11.899,11.89,40.0554258]
[1672731333888,25.4007012,11.899,11.89,252.00495238]
[1672731334091,19.4007012,11.899,11.89,125.85640849]
[1672731334312,19.4007012,11.899,11.891,7.52170413]
[1672731334512,19.4007012,11.899,11.892,20.0]
[1672731334937,19.4007012,11.899,11.893,7.52170413]
[1672731335875,19.4007012,11.899,11.892,20.0]
[1672731336086,19.4007012,11.899,11.891,7.52170413]
[1672731336308,19.4007012,11.899,11.892,20.0]
[1672731337161,19.4007012,11.899,11.89,20.0]
[1672731337360,82.5307012,11.899,11.89,20.0]
[1672731337570,82.5307012,11.899,11.89,27.52170413]
[1672731338205,19.4007012,11.899,11.89,27.52170413]
[1672731339162,19.4007012,11.899,11.889,38.91356416]
[1672731339163,30.0,11.897,11.889,38.91356416]
[1672731339355,63.14,11.896,11.889,38.91356416]
[1672731339686,30.0,11.895,11.889,38.91356416]
[1672731339877,63.15,11.894,11.889,38.91356416]
[1672731340084,63.15,11.894,11.889,30.42086416]
[1672731340621,63.14,11.896,11.889,30.42086416]
[1672731340939,46.6112,11.898,11.889,30.42086416]
[1672731341149,46.6112,11.898,11.89,7.52170413]
[1672731341688,46.6112,11.898,11.891,20.0]
[1672731341995,46.6112,11.898,11.89,20.0]
[1672731341996,63.13,11.898,11.89,20.0]
[1672731344816,195.1672012,11.899,11.89,20.0]
[1672731347038,30.0,11.898,11.889,30.42086416]
[1672731347243,63.14,11.897,11.889,30.42086416]
[1672731349147,30.0,11.896,11.889,30.42086416]
[1672731349453,63.15,11.895,11.889,30.42086416]
[1672731352067,63.14,11.897,11.889,30.42086416]
[1672731353218,180.1914012,11.899,11.89,20.0]
[1672731356182,180.1914012,11.899,11.891,7.52170413]
[1672731356598,180.1914012,11.899,11.892,20.0]
[1672731356813,132.0372012,11.899,11.892,20.0]
[1672731357438,132.0372012,11.899,11.891,20.0]
[1672731358814,132.0372012,11.899,11.891,7.52677573]
[1672731359207,132.0372012,11.899,11.892,20.0]
[1672731360496,132.0372012,11.899,11.89,20.0]
[1672731360901,132.0372012,11.899,11.89,27.52677573]
[1672731361121,19.4007012,11.899,11.891,7.52677573]
[1672731361441,19.4007012,11.899,11.892,20.0]
[1672731361859,19.4007012,11.899,11.893,7.52677573]
[1672731364701,19.4007012,11.899,11.894,20.0]
[1672731365010,19.4007012,11.899,11.895,7.52677573]
[1672731369111,19.4007012,11.899,11.894,20.0]
[1672731369331,19.4007012,11.899,11.892,7.52677573]
[1672731369522,19.4007012,11.899,11.893,20.0]
[1672731369853,19.4007012,11.899,11.894,7.52677573]
[1672731370074,19.4007012,11.899,11.893,20.0]
[1672731370290,19.4007012,11.899,11.893,7.52677573]
[1672731370490,19.4007012,11.899,11.894,20.0]
[1672731371862,19.4007012,11.899,11.894,27.52677573]
[1672731376378,19.4007012,11.899,11.894,20.0]
[1672731376588,19.4007012,11.899,11.891,20.0]
[1672731376779,19.4007012,11.899,11.891,27.52677573]
[1672731376988,19.4007012,11.899,11.892,7.52677573]
[1672731377213,19.4007012,11.899,11.893,20.0]
[1672731377624,19.4007012,11.899,11.893,27.52677573]
[1672731380461,19.4007012,11.899,11.894,7.88286983]
[1672731380678,19.4007012,11.899,11.893,20.0]
[1672731380871,19.4007012,11.899,11.891,20.0]
[1672731387318,19.4007012,11.899,11.891,27.88286983]
[1672731397616,19.4007012,11.899,11.891,20.0]
[1672731397827,49.4007012,11.899,11.891,20.0]
[1672731400472,49.4007012,11.899,11.891,27.88286983]
[1672731401613,49.4007012,11.899,11.891,20.0]
[1672731404172,19.4007012,11.899,11.891,20.0]
[1672731404389,19.4007012,11.899,11.891,27.88286983]
[1672731443408,19.4007012,11.899,11.891,84.40422162]
[1672731450765,19.4007012,11.899,11.891,27.88286983]
[1672731452110,19.4007012,11.899,11.891,7.88286983]
[1672731453595,30.0,11.898,11.89,24.4088]
[1672731455173,30.0,11.898,11.891,20.0]
[1672731458016,30.0,11.898,11.873,186.18744578]
[1672731458207,12.85,11.89,11.875,111.7017]
[1672731458533,12.85,11.89,11.876,20.0]
[1672731458534,47.3625,11.889,11.876,20.0]
[1672731458751,47.3625,11.889,11.876,7.9275691]
[1672731458965,138.1455,11.888,11.877,7.9275691]
[1672731459472,138.1455,11.888,11.877,60.45376089]
[1672731459903,138.1455,11.888,11.878,7.9275691]
[1672731460120,22.7181,11.887,11.878,7.9275691]
[1672731460324,22.7181,11.887,11.879,52.52619179]
[1672731460643,22.7181,11.887,11.88,7.9275691]
[1672731461461,22.7181,11.887,11.881,20.0]
[1672731461886,22.7181,11.887,11.881,27.9275691]
[1672731466728,22.7181,11.887,11.881,20.0]
[1672731467279,22.7181,11.887,11.88,20.0]
[1672731468338,22.7181,11.887,11.881,7.9275691]
[1672731468519,22.7181,11.887,11.882,20.0]
[1672731468946,22.7181,11.887,11.883,7.9275691]
[1672731469164,113.4283,11.888,11.884,20.0]
[1672731469390,22.6453,11.889,11.884,20.0]
[1672731469593,22.6453,11.889,11.885,7.9275691]
[1672731469789,24.8811,11.891,11.885,7.9275691]
[1672731471050,24.8811,11.891,11.884,20.0]
[1672731471264,24.8811,11.891,11.884,7.9275691]
[1672731473251,24.8811,11.891,11.885,20.0]
[1672731473673,24.8811,11.891,11.885,27.9275691]
[1672731479493,24.8811,11.891,11.885,20.0]
[1672731479708,24.8811,11.891,11.881,7.9275691]
[1672731479900,22.7217,11.89,11.882,20.0]
[1672731480321,22.7217,11.89,11.883,7.9275691]
[1672731480654,22.7217,11.89,11.884,20.0]
[1672731481593,22.7217,11.89,11.884,27.9275691]
[1672731483903,22.7217,11.89,11.884,20.0]
[1672731484225,22.7217,11.89,11.882,7.9275691]
[1672731484426,23.1302,11.889,11.883,20.0]
[1672731484764,23.1302,11.889,11.88,27.9275691]
[1672731485903,23.1302,11.889,11.881,7.9275691]
[1672731486121,23.1302,11.889,11.882,20.0]
[1672731487161,23.1302,11.889,11.881,20.0]
[1672731487802,23.1302,11.889,11.882,7.9275691]
[1672731488103,23.1302,11.889,11.883,20.0]
[1672731488533,23.1302,11.889,11.883,27.9275691]
[1672731495141,23.5937,11.891,11.883,27.9275691]
[1672731495351,23.5937,11.891,11.883,85.14667422]
[1672731495579,119.9081,11.897,11.883,85.14667422]
[1672731495793,23.9182,11.896,11.884,22.6464]
[1672731496204,23.9182,11.896,11.885,27.9275691]
[1672731496621,23.9182,11.896,11.886,7.9275691]
[1672731496944,23.9182,11.896,11.887,20.0]
[1672731497362,23.9182,11.896,11.888,7.9275691]
[1672731497571,23.9182,11.896,11.889,20.0]
[1672731498517,23.9182,11.896,11.888,20.0]
[1672731503361,23.9182,11.896,11.889,7.92522502]
[1672731503579,23.9182,11.896,11.89,20.0]
[1672731503894,23.9182,11.896,11.888,20.0]
[1672731506200,23.9182,11.896,11.888,28.28154428]
[1672731506514,23.9182,11.896,11.888,20.0]
[1672731513949,21.4182,11.896,11.888,20.0]
[1672731515868,93.15,11.895,11.885,30.14]
[1672731517018,90.65,11.895,11.885,30.14]
[1672731519130,115.3827,11.895,11.885,30.14]
[1672731542071,52.2327,11.895,11.885,30.14]
[1672731543751,115.3827,11.895,11.885,30.14]
[1672731545325,175.71020496,11.895,11.885,30.14]
[1672731545520,12.85,11.89,11.885,30.14]
[1672731545732,30.0,11.888,11.87,12.91]
[1672731545941,86.1588,11.887,11.871,20.0]
[1672731546158,30.0,11.886,11.872,53.85212246]
[1672731546485,192.895,11.886,11.872,53.85212246]
[1672731546882,162.895,11.885,11.872,53.85212246]
[1672731547515,139.9262,11.884,11.873,20.0]
[1672731547729,139.9262,11.884,11.872,53.85212246]
[1672731547932,139.9262,11.884,11.873,53.85212246]
[1672731548148,75.8203,11.883,11.873,53.85212246]
[1672731549199,75.8203,11.883,11.874,20.0]
[1672731551612,139.0303,11.883,11.871,20.0]
[1672731551822,136.1192,11.882,11.871,20.0]
[1672731552242,199.3392,11.882,11.871,20.0]
[1672731552467,136.1192,11.882,11.871,20.0]
[1672731553610,136.1192,11.882,11.871,19.5]
[1672731555437,22.6747,11.881,11.871,19.5]
[1672731555648,22.6747,11.881,11.871,73.35212246]
[1672731559113,113.3,11.882,11.871,73.35212246]
[1672731559317,63.18,11.889,11.871,73.35212246]
[1672731559634,22.5894,11.889,11.872,23.9801]
[1672731559839,22.5894,11.889,11.873,20.0]
[1672731560054,22.5894,11.889,11.873,120.78442246]
[1672731560249,22.5894,11.889,11.873,66.9323]
[1672731560676,22.5894,11.889,11.874,23.9801]
[1672731561083,22.5894,11.889,11.875,20.0]
[1672731561297,22.5894,11.889,11.875,42.6182]
[1672731562159,342.0,11.888,11.875,42.6182]
[1672731562568,63.19,11.887,11.875,42.6182]
[1672731562978,30.0,11.886,11.875,20.0]
[1672731563191,63.2,11.885,11.872,20.0]
[1672731563394,231.2159,11.885,11.872,20.0]
[1672731563824,231.2159,11.885,11.871,47.438]
[1672731564051,198.0159,11.884,11.871,47.438]
[1672731564388,63.21,11.883,11.871,47.438]
[1672731564568,200.5102,11.883,11.871,47.438]
[1672731565201,223.0818,11.883,11.872,20.0]
[1672731566138,535.0818,11.883,11.872,20.0]
[1672731573625,471.8718,11.883,11.872,20.0]
[1672731575293,63.22,11.882,11.872,20.0]
[1672731575718,24.6771,11.882,11.872,20.0]
[1672731577306,63.22,11.881,11.872,16.5]
[1672731577711,23.9662,11.881,11.872,16.5]
[1672731580652,335.9662,11.881,11.872,16.5]
[1672731583086,2.87318581,11.88,11.872,16.5]
[1672731583486,335.9662,11.881,11.872,16.5]
[1672731588118,23.9662,11.881,11.872,16.5]
[1672731593797,312.0,11.885,11.872,16.5]
[1672731594122,63.19,11.887,11.873,24.5874]
[1672731594329,63.19,11.887,11.874,20.0]
[1672731594528,63.19,11.887,11.875,24.5874]
[1672731594737,63.19,11.887,11.876,20.0]
[1672731594937,24.4104,11.886,11.876,20.0]
[1672731595383,63.2,11.885,11.876,20.0]
[1672731596205,86.2406,11.885,11.876,20.0]
[1672731597063,398.2406,11.885,11.876,20.0]
[1672731599077,335.0406,11.885,11.876,20.0]
[1672731600210,23.0406,11.885,11.876,20.0]